bitfinex/quotes_SOLUSD_20220113
["timestamp","ask_amount","ask_price","bid_price","bid_amount"]
[1642099951970,18.534,149.63,149.53,3.82966298]
[1642099952571,18.534,149.63,149.53,6.0]
[1642099953171,10.0303,149.58,149.51,26.67440114]
[1642099953373,12.284,149.61,149.51,16.84473816]
[1642099953572,0.25,149.58,149.51,22.84473816]
[1642099954272,15.61,149.61,149.52,3.82997647]
[1642099954475,15.61,149.61,149.41,494.06771223]
[1642099954476,120.12,149.54,149.41,494.06771223]
[1642099954674,120.12,149.54,149.4,23.44122003]
[1642099954675,0.9466,149.49,149.4,9.49447901]
[1642099954873,12.286,149.48,149.4,9.49447901]
[1642099955074,120.12,149.45,149.4,9.49447901]
[1642099955272,12.286,149.44,149.4,9.49447901]
[1642099955474,15.86,149.44,149.34,2.677]
[1642099955674,16.214,149.44,149.33,1.197]
[1642099955872,16.214,149.44,149.33,1.677]
[1642099956073,7.287,149.44,149.33,1.677]
[1642099956273,7.287,149.44,149.33,11.717]
[1642099956472,7.287,149.44,149.34,17.07016707]
[1642099956673,7.287,149.44,149.35,2.677]
[1642099956874,9.61,149.47,149.35,2.677]
[1642099957074,9.61,149.47,149.36,0.07]
[1642099957277,2.677,149.46,149.38,13.74315333]
[1642099957474,2.677,149.46,149.38,19.74315333]
[1642099958279,9.61,149.47,149.39,2.677]
[1642099958480,0.9466,149.49,149.39,8.927]
[1642099958679,0.9466,149.49,149.44,15.3314512]
[1642099958880,0.9466,149.49,149.44,18.0074512]
[1642099959180,3.4909156,149.56,149.45,88.0]
[1642099959382,2.676,149.59,149.46,2.674]
[1642099959582,2.674,149.6,149.47,90.49199769]
[1642099959785,2.674,149.64,149.53,10.0261]
[1642099959985,2.674,149.64,149.54,16.18515261]
[1642099960384,2.674,149.64,149.54,16.44515261]
[1642099960786,12.7005,149.64,149.56,10.0258]
[1642099960986,12.7005,149.64,149.56,10.2858]
[1642099961688,12.7005,149.64,149.54,10.0271]
[1642099962289,12.7005,149.64,149.54,10.2871]
[1642099962588,12.9505,149.64,149.54,10.2871]
[1642099962787,12.9505,149.64,149.55,17.27057171]
[1642099963590,12.9505,149.64,149.54,10.0271]
[1642099963791,9.61,149.63,149.51,48.7815]
[1642099963992,10.0303,149.59,149.51,46.1085]
[1642099964291,2.674,149.58,149.51,46.1085]
[1642099964490,2.924,149.58,149.51,46.1085]
[1642099964892,12.9543,149.58,149.5,25.52241382]
[1642099965091,12.9543,149.58,149.5,25.78241382]
[1642099966391,12.9543,149.58,149.5,25.52241382]
[1642099967794,12.9543,149.58,149.5,25.78241382]
[1642099968596,2.924,149.58,149.5,25.78241382]
[1642099969396,2.924,149.58,149.5,25.52241382]
[1642099970098,12.284,149.63,149.51,2.674]
[1642099970299,2.674,149.68,149.57,10.0251]
[1642099970502,2.674,149.68,149.59,12.33739448]
[1642099970699,2.673,149.7,149.6,2.673]
[1642099971105,2.672,149.74,149.6,3.183]
[1642099971298,2.672,149.74,149.6,25.791]
[1642099971800,2.922,149.74,149.6,25.791]
[1642099972199,10.0226,149.7,149.62,10.0232]
[1642099972401,2.672,149.69,149.62,25.37242814]
[1642099972600,2.922,149.69,149.62,25.63242814]
[1642099974907,12.9447,149.69,149.62,25.63242814]
[1642099975903,12.9447,149.69,149.62,10.2832]
[1642099976505,12.9447,149.69,149.6,22.608]
[1642099976730,12.9447,149.69,149.57,36.0857]
[1642099976731,18.9447,149.69,149.59,8.03]
[1642099976931,26.5587,149.69,149.56,24.507]
[1642099977131,92.9487,149.69,149.56,24.507]
[1642099977538,26.5587,149.69,149.56,24.507]
[1642099978332,26.5587,149.69,149.56,24.767]
[1642099978733,26.5587,149.69,149.55,10.0279]
[1642099978933,8.03,149.68,149.53,2.673]
[1642099979135,10.0286,149.61,149.52,27.4492]
[1642099979334,2.674,149.6,149.52,47.3662]
[1642099979535,0.25,149.6,149.52,50.0402]
[1642099979735,0.25,149.6,149.53,81.75491786]
[1642099979933,0.25,149.6,149.54,76.4186]
[1642099980138,10.0265,149.63,149.54,76.4186]
[1642099980336,10.2765,149.63,149.54,79.3526]
[1642099980536,0.25,149.63,149.54,79.3526]
[1642099980935,0.25,149.63,149.55,1.64999521]
[1642099981135,0.25,149.63,149.56,2.673]
[1642099981336,10.2767,149.63,149.56,2.673]
[1642099981535,10.2767,149.63,149.55,36.0896]
[1642099981737,10.2767,149.63,149.55,2.673]
[1642099982136,10.2767,149.63,149.56,13.00171752]
[1642099982536,0.25,149.63,149.57,10.0267]
[1642099982940,10.2758,149.64,149.57,10.2867]
[1642099984040,0.25,149.64,149.57,10.2867]
[1642099984238,2.673,149.66,149.58,66.39]
[1642099984440,2.673,149.74,149.63,10.0222]
[1642099984642,2.673,149.74,149.64,14.0945284]
[1642099984849,2.672,149.77,149.64,16.7665284]
[1642099985142,2.672,149.77,149.65,66.39]
[1642099985344,2.672,149.77,149.64,17.0265284]
[1642099985644,10.0193,149.75,149.66,10.021]
[1642099985942,2.67,149.74,149.66,10.021]
[1642099986344,66.39,149.73,149.62,2.67]
[1642099986546,12.693,149.72,149.61,23.208]
[1642099986745,12.693,149.72,149.62,10.0237]
[1642099986946,12.693,149.72,149.63,2.672]
[1642099987151,2.672,149.76,149.64,15.78185137]
[1642099987350,2.672,149.79,149.65,2.672]
[1642099987546,10.0186,149.75,149.66,33.3939]
[1642099987747,36.0672,149.79,149.67,12.6902]
[1642099987979,2.672,149.79,149.68,14.44754258]
[1642099988150,2.67,149.81,149.69,2.67]
[1642099988548,2.67,149.81,149.69,3.18]
[1642099988750,2.67,149.83,149.69,2.93]
[1642099988947,8.67,149.83,149.69,69.64]
[1642099989252,10.016,149.79,149.73,10.016]
[1642099989449,2.67,149.78,149.73,10.016]
[1642099989647,2.92,149.78,149.73,10.016]
[1642099990248,10.2667,149.78,149.69,2.67]
[1642099990452,10.2667,149.78,149.67,23.1287]
[1642099990453,2.67,149.77,149.67,23.1287]
[1642099990649,2.67,149.77,149.67,23.3887]
[1642099990949,8.92,149.77,149.67,23.3887]
[1642099991547,2.92,149.77,149.67,45.74020256]
[1642099991747,2.92,149.77,149.67,33.4089]
[1642099991948,2.92,149.77,149.67,23.3887]
[1642099992151,8.92,149.77,149.67,23.1287]
[1642099992549,8.92,149.77,149.62,8.03]
[1642099992847,8.92,149.77,149.62,20.61701325]
[1642099993049,8.92,149.77,149.62,20.684785]
[1642099993248,10.0187,149.75,149.64,10.0222]
[1642099993449,2.672,149.74,149.64,10.0222]
[1642099993650,2.672,149.74,149.62,8.03]
[1642099993852,8.922,149.74,149.62,8.03]
[1642099994450,10.0228,149.69,149.63,10.023]
[1642099994650,2.672,149.72,149.63,10.023]
[1642099994850,2.672,149.72,149.63,10.283]
[1642099995051,8.922,149.72,149.63,10.533]
[1642099995253,8.922,149.72,149.63,10.273]
[1642099995554,10.0219,149.7,149.61,2.67]
[1642099995752,2.672,149.69,149.56,2.672]
[1642099995951,15.15,149.69,149.56,2.672]
[1642099996351,15.15,149.69,149.56,16.97102415]
[1642099996754,10.0258,149.65,149.58,10.0264]
[1642099996950,2.673,149.64,149.56,14.29902415]
[1642099997351,8.923,149.64,149.55,48.1538]
[1642099998155,10.0281,149.61,149.55,58.1816]
[1642099998353,10.0281,149.61,149.55,26.72021508]
[1642099998552,16.2781,149.61,149.55,26.72021508]
[1642099998757,10.2781,149.61,149.55,26.98021508]
[1642099999051,10.2781,149.61,149.55,10.0278]
[1642099999851,16.2781,149.61,149.55,10.0278]
[1642100000051,10.2781,149.61,149.55,10.0278]
[1642100000452,10.2781,149.61,149.55,10.2878]
[1642100000853,10.2781,149.61,149.56,13.80991566]
[1642100001154,0.25,149.61,149.56,24.09731566]
[1642100001554,10.2774,149.62,149.56,24.09731566]
[1642100001753,0.25,149.62,149.56,24.09731566]
[1642100001954,8.923,149.64,149.56,24.09731566]
[1642100002155,2.923,149.64,149.56,24.09731566]
[1642100002353,8.923,149.64,149.56,24.09731566]
[1642100003156,18.9491,149.64,149.56,24.09731566]
[1642100005054,12.9491,149.64,149.56,24.09731566]
[1642100006656,88.0,149.63,149.51,1.64999521]
[1642100006856,10.0305,149.58,149.48,5.74464475]
[1642100007056,3.486,149.54,149.48,5.74464475]
[1642100007256,2.674,149.53,149.48,5.74464475]
[1642100007655,2.924,149.53,149.48,5.74464475]
[1642100007856,8.924,149.53,149.48,5.74464475]
[1642100008057,10.0341,149.52,149.48,5.74464475]
[1642100008259,2.674,149.51,149.4,2.674]
[1642100008456,0.25,149.51,149.4,2.674]
[1642100009356,10.0359,149.5,149.41,13.21609827]
[1642100009557,12.9619,149.5,149.41,13.72609827]
[1642100009761,2.676,149.52,149.42,69.066]
[1642100009961,2.676,149.53,149.42,69.576]
[1642100010159,3.486,149.54,149.42,69.576]
[1642100010362,3.736,149.54,149.42,69.576]
[1642100010559,3.736,149.54,149.42,77.606]
[1642100010862,13.7689,149.54,149.42,20.9887]
[1642100011059,13.7689,149.54,149.42,87.3787]
[1642100011258,13.7689,149.54,149.42,20.9887]
[1642100011461,2.674,149.53,149.42,20.9887]
[1642100011660,2.674,149.53,149.42,10.956]
[1642100011863,2.924,149.53,149.42,10.956]
[1642100012063,12.9578,149.53,149.42,10.706]
[1642100012261,12.9578,149.53,149.42,2.676]
[1642100012462,18.9578,149.53,149.42,2.676]
[1642100012666,26.9878,149.53,149.42,2.676]
[1642100013064,20.9878,149.53,149.42,2.676]
[1642100013262,26.9878,149.53,149.42,2.676]
[1642100014566,32.3398,149.53,149.42,2.676]
[1642100014766,33.98979521,149.53,149.42,2.676]
[1642100015867,34.24979521,149.53,149.42,2.676]
[1642100016669,66.39,149.52,149.42,2.676]
[1642100016867,10.0394,149.47,149.42,2.676]
[1642100017068,0.25,149.47,149.41,13.21609827]
[1642100017268,2.676,149.52,149.41,13.21609827]
[1642100017468,8.926,149.52,149.41,13.47609827]
[1642100017668,8.676,149.52,149.41,13.47609827]
[1642100017870,10.0362,149.49,149.41,13.47609827]
[1642100018693,8.676,149.52,149.41,13.47609827]
[1642100018896,10.0356,149.5,149.41,13.47609827]
[1642100019092,2.676,149.49,149.41,13.47609827]
[1642100019292,8.03,149.55,149.41,65.59429827]
[1642100019493,2.674,149.54,149.41,65.59429827]
[1642100019895,8.674,149.54,149.41,65.59429827]
[1642100020296,10.0357,149.5,149.41,65.59429827]
[1642100020500,10.2857,149.5,149.41,65.59429827]
[1642100020900,10.2857,149.5,149.42,66.39]
[1642100021099,0.25,149.5,149.42,66.65]
[1642100021299,0.25,149.5,149.42,72.65]
[1642100021497,2.676,149.57,149.43,2.676]
[1642100021797,2.676,149.57,149.45,66.39]
[1642100021995,2.674,149.6,149.47,13.31014402]
[1642100022197,2.674,149.6,149.48,2.674]
[1642100022398,2.674,149.6,149.48,10.704]
[1642100022599,2.674,149.6,149.48,10.964]
[1642100022797,10.0295,149.59,149.48,10.964]
[1642100022997,2.674,149.58,149.48,10.964]
[1642100023599,3.184,149.58,149.48,10.964]
[1642100023800,10.0322,149.55,149.48,10.964]
[1642100023998,10.2822,149.55,149.48,10.964]
[1642100025400,2.674,149.56,149.48,8.29]
[1642100025603,10.0314,149.57,149.48,8.29]
[1642100026202,10.0314,149.57,149.48,18.321]
[1642100026405,2.674,149.58,149.48,84.711]
[1642100026603,2.674,149.6,149.5,13.10438107]
[1642100027102,2.674,149.6,149.5,13.36438107]
[1642100027301,2.674,149.6,149.5,23.39378107]
[1642100027302,8.674,149.6,149.5,23.39378107]
[1642100027504,8.674,149.6,149.5,23.64378107]
[1642100027802,18.7027,149.6,149.5,23.64378107]
[1642100029203,18.9527,149.6,149.5,23.64378107]
[1642100029403,12.9527,149.6,149.51,66.39]
[1642100029603,2.674,149.64,149.54,76.4169]
[1642100030004,2.673,149.66,149.55,78.98801681]
[1642100030403,2.673,149.66,149.55,85.24801681]
[1642100030806,10.0254,149.65,149.56,10.0252]
[1642100031005,2.673,149.64,149.56,82.6752]
[1642100031404,2.923,149.64,149.56,82.6752]
[1642100034705,12.9489,149.64,149.56,16.2852]
[1642100034907,12.9489,149.64,149.56,16.0252]
[1642100035210,12.9489,149.64,149.55,12.59801681]
[1642100035406,18.9489,149.64,149.55,12.59801681]
[1642100035606,20.74005774,149.64,149.55,12.59801681]
[1642100036506,20.74005774,149.64,149.55,12.85801681]
[1642100036710,1.79115774,149.62,149.55,12.85801681]
[1642100036907,2.674,149.61,149.55,12.85801681]
[1642100037107,2.924,149.61,149.55,12.85801681]
[1642100037706,2.924,149.61,149.55,0.26]
[1642100037907,2.924,149.61,149.53,33.9134]
[1642100038110,12.952,149.61,149.53,24.0234]
[1642100038510,18.952,149.61,149.52,24.92408526]
[1642100038708,20.74315774,149.61,149.52,15.74234311]
[1642100039910,1.79115774,149.6,149.52,14.08735785]
[1642100040112,2.04115774,149.6,149.52,14.08735785]
[1642100040311,2.04115774,149.6,149.52,24.11605785]
[1642100040510,10.0295,149.59,149.5,4.58898526]
[1642100040711,2.674,149.58,149.51,1.91498526]
[1642100040914,6.635,149.58,149.51,1.91498526]
[1642100041111,2.674,149.57,149.51,1.91498526]
[1642100041512,8.924,149.57,149.51,1.91498526]
[1642100041712,10.0321,149.55,149.49,1.91498526]
[1642100041915,2.674,149.54,149.49,1.91498526]
[1642100042113,0.25,149.54,149.49,1.91498526]
[1642100043014,0.25,149.54,149.48,12.51675008]
[1642100043213,10.0328,149.54,149.48,12.77675008]
[1642100043614,10.2828,149.54,149.48,12.77675008]
[1642100044717,1.79115774,149.57,149.49,66.39]
[1642100045115,1.79115774,149.57,149.49,72.9]
[1642100045714,2.674,149.59,149.5,1.91498526]
[1642100045914,2.674,149.59,149.51,13.03337849]
[1642100046121,12.9533,149.59,149.51,23.06267849]
[1642100046415,12.9533,149.59,149.51,29.32267849]
[1642100046617,18.9533,149.59,149.51,29.32267849]
[1642100046815,18.9533,149.59,149.51,19.29337849]
[1642100048115,18.9533,149.59,149.51,6.26]
[1642100048316,18.9533,149.59,149.5,11.94498526]
[1642100048515,18.9533,149.59,149.5,1.91498526]
[1642100048715,27.3343,149.59,149.5,1.91498526]
[1642100048915,27.5943,149.59,149.5,1.91498526]
[1642100049516,1.79115774,149.57,149.47,17.78033859]
[1642100049720,10.0331,149.54,149.47,17.78033859]
[1642100049916,10.0331,149.54,149.47,18.04033859]
[1642100050116,16.2831,149.54,149.47,18.04033859]
[1642100050515,16.2831,149.54,149.47,17.78033859]
[1642100050716,16.2831,149.54,149.47,1.91498526]
[1642100051518,2.674,149.53,149.47,1.91498526]
[1642100051747,10.0351,149.51,149.47,1.91498526]
[1642100052223,10.2851,149.51,149.47,1.91498526]
[1642100052620,10.2851,149.51,149.45,25.41468526]
[1642100052822,10.2851,149.51,149.45,31.67468526]
[1642100054121,10.2851,149.51,149.46,15.88896805]
[1642100055828,10.2851,149.51,149.46,17.80395331]
[1642100056628,2.674,149.53,149.46,17.80395331]
[1642100056827,44.86715774,149.56,149.46,17.80395331]
[1642100056828,2.674,149.55,149.46,24.06395331]
[1642100057027,35.23715774,149.56,149.46,33.69395331]
[1642100057231,2.674,149.55,149.46,33.69395331]
[1642100057427,2.674,149.55,149.46,27.94395331]
[1642100057629,1.79115774,149.56,149.47,69.064]
[1642100057829,37.90675774,149.58,149.48,1.91498526]
[1642100058028,43.90675774,149.58,149.49,16.23882338]
[1642100058429,43.90675774,149.58,149.49,22.49882338]
[1642100058832,42.1156,149.58,149.5,1.91498526]
[1642100059030,42.1156,149.58,149.5,8.17498526]
[1642100059251,10.0314,149.57,149.5,1.91498526]
[1642100059452,10.2814,149.57,149.5,1.91498526]
[1642100059652,2.674,149.56,149.5,1.91498526]
[1642100060054,8.924,149.56,149.5,1.91498526]
[1642100060854,10.0336,149.54,149.49,1.91498526]
[1642100061053,0.25,149.54,149.49,1.91498526]
[1642100061456,2.924,149.56,149.49,1.91498526]
[1642100061656,0.25,149.56,149.49,1.91498526]
[1642100061956,12.7069,149.55,149.49,1.91498526]
[1642100062354,12.9569,149.55,149.49,1.91498526]
[1642100062756,10.2829,149.55,149.49,1.91498526]
[1642100063658,10.2829,149.55,149.49,11.94748526]
[1642100063860,0.25,149.55,149.49,11.94748526]
[1642100064058,10.2818,149.56,149.49,11.94748526]
[1642100064258,10.2818,149.56,149.49,12.20748526]
[1642100064457,10.2818,149.56,149.5,16.93853419]
[1642100064458,0.25,149.56,149.5,16.93853419]
[1642100064957,10.0318,149.56,149.5,17.19853419]
[1642100065359,10.0318,149.56,149.5,0.26]
[1642100065558,10.2818,149.56,149.49,12.20748526]
[1642100068761,2.674,149.55,149.49,12.20748526]
[1642100068962,2.924,149.55,149.49,12.20748526]
[1642100069364,0.25,149.55,149.49,12.20748526]
[1642100069966,0.25,149.55,149.5,1.91498526]
[1642100070267,0.25,149.56,149.51,23.49610063]
[1642100070468,2.674,149.55,149.51,23.75610063]
[1642100070665,2.674,149.57,149.51,23.75610063]
[1642100071066,2.924,149.57,149.51,23.75610063]
[1642100073368,12.955,149.57,149.51,23.75610063]
[1642100073569,2.924,149.57,149.51,23.75610063]
[1642100073792,1.79115774,149.59,149.52,2.674]
[1642100073976,1.79115774,149.59,149.55,10.0281]
[1642100074373,1.79115774,149.59,149.55,10.2881]
[1642100075175,2.674,149.62,149.55,10.2881]
[1642100075176,10.0284,149.61,149.55,10.2881]
[1642100075576,10.2784,149.61,149.55,10.2881]
[1642100075777,0.25,149.61,149.55,10.2881]
[1642100076475,10.0284,149.61,149.55,10.2881]
[1642100076877,10.2784,149.61,149.55,10.2881]
[1642100077880,10.2784,149.61,149.52,28.55218526]
[1642100078105,2.674,149.6,149.52,25.62818526]
[1642100078306,12.7036,149.6,149.52,25.62818526]
[1642100078505,12.9536,149.6,149.53,1.91498526]
[1642100079106,18.9536,149.6,149.53,1.91498526]
[1642100079307,20.74475774,149.6,149.53,10.0297]
[1642100079707,10.71515774,149.6,149.53,10.2897]
[1642100081711,8.924,149.6,149.53,10.2897]
[1642100083114,8.924,149.6,149.54,15.88211358]
[1642100083318,8.924,149.6,149.55,10.0284]
[1642100083515,8.924,149.6,149.52,31.62818526]
[1642100083516,18.953,149.6,149.52,31.62818526]
[1642100084616,18.953,149.6,149.53,10.0298]
[1642100085017,18.953,149.6,149.53,26.32467769]
[1642100085416,18.953,149.6,149.53,10.0298]
[1642100086321,18.953,149.6,149.52,11.94538526]
[1642100086520,28.583,149.6,149.52,1.91498526]
[1642100086720,30.23299521,149.6,149.52,1.91498526]
[1642100087321,10.0354,149.56,149.52,1.91498526]
[1642100087520,2.674,149.55,149.52,1.91498526]
[1642100087920,2.00000001,149.54,149.52,1.91498526]
[1642100088121,2.674,149.53,149.52,1.91498526]
[1642100088323,10.489,149.53,149.49,1.91498526]
[1642100088522,26.775,149.53,149.49,1.91498526]
[1642100088721,36.405,149.53,149.49,1.91498526]
[1642100088922,36.405,149.53,149.45,3.82987309]
[1642100089121,38.05499521,149.53,149.45,3.82987309]
[1642100089923,66.39,149.52,149.41,3.82987309]
[1642100090123,10.0412,149.46,149.41,3.82987309]
[1642100090323,12.7172,149.46,149.41,3.82987309]
[1642100090528,18.9672,149.46,149.41,3.82987309]
[1642100090724,12.9672,149.46,149.41,3.82987309]
[1642100091326,10.2912,149.46,149.41,3.82987309]
[1642100091526,10.0389,149.47,149.42,14.40328493]
[1642100091924,10.2889,149.47,149.42,14.40328493]
[1642100092725,10.2889,149.47,149.38,2.676]
[1642100092926,2.676,149.46,149.38,6.0]
[1642100093225,10.0407,149.45,149.38,3.82987309]
[1642100093626,10.2907,149.45,149.38,3.82987309]
[1642100093828,10.5507,149.45,149.38,3.82987309]
[1642100094527,2.677,149.44,149.38,3.82987309]
[1642100094729,12.307,149.47,149.38,17.54758962]
[1642100094931,9.63,149.47,149.38,23.75701653]
[1642100095130,2.676,149.46,149.38,10.0393]
[1642100096135,13.2256,149.46,149.38,27.18696493]
[1642100096530,13.2256,149.46,149.38,10.0393]
[1642100096831,66.39,149.45,149.35,6.50587309]
[1642100097030,2.677,149.44,149.36,3.82987309]
[1642100097230,12.7181,149.44,149.36,3.82987309]
[1642100097429,24.5341,149.44,149.36,3.82987309]
[1642100097631,1.64999521,149.43,149.36,3.82987309]
[1642100097830,2.677,149.42,149.36,3.82987309]
[1642100098034,2.927,149.42,149.34,3.83433554]
[1642100099131,10.0438,149.4,149.32,17.70760863]
[1642100099331,2.678,149.39,149.32,17.70760863]
[1642100099531,2.928,149.39,149.32,23.70760863]
[1642100099731,0.25,149.39,149.32,23.70760863]
[1642100099934,0.25,149.39,149.32,23.96760863]
[1642100100130,0.25,149.39,149.32,16.3034]
[1642100100732,2.928,149.42,149.32,16.3034]
[1642100101230,3.188,149.42,149.32,16.3034]
[1642100101833,3.188,149.42,149.32,16.0434]
[1642100102031,10.043,149.41,149.32,10.0434]
[1642100102231,2.678,149.4,149.31,3.82987309]
[1642100102430,4.32799521,149.4,149.31,3.82987309]
[1642100102634,10.57799521,149.4,149.31,3.82987309]
[1642100102832,2.928,149.4,149.31,3.82987309]
[1642100103232,2.928,149.4,149.3,24.50452839]
[1642100103437,2.928,149.4,149.31,9.0439]
[1642100103438,10.0442,149.39,149.31,9.0439]
[1642100103639,2.678,149.38,149.31,9.0439]
[1642100103834,2.678,149.38,149.31,9.3039]
[1642100104035,2.928,149.38,149.31,9.3039]
[1642100104258,0.25,149.38,149.31,9.3039]
[1642100104659,2.678,149.41,149.31,10.95389521]
[1642100104859,2.678,149.43,149.31,11.20389521]
[1642100105060,2.678,149.43,149.32,22.6185]
[1642100105262,2.678,149.43,149.37,26.56522193]
[1642100105459,2.677,149.45,149.37,26.56522193]
[1642100105860,2.677,149.46,149.37,26.56522193]
[1642100106067,2.677,149.46,149.37,26.82522193]
[1642100106862,12.715,149.47,149.37,26.82522193]
[1642100107064,12.715,149.47,149.37,50.65302193]
[1642100107462,12.715,149.47,149.37,53.58002193]
[1642100108463,12.715,149.47,149.37,50.90302193]
[1642100108865,12.715,149.47,149.37,50.64302193]
[1642100109663,18.715,149.47,149.35,3.82987309]
[1642100109866,10.0413,149.42,149.36,10.0407]
[1642100110066,10.0413,149.42,149.35,3.82987309]
[1642100110264,10.2913,149.42,149.35,3.82987309]
[1642100110665,10.2913,149.42,149.35,3.83426527]
[1642100110865,10.0445,149.38,149.35,3.83426527]
[1642100111064,18.3285,149.38,149.35,3.83426527]
[1642100111266,2.00000001,149.37,149.35,3.83426527]
[1642100111469,4.92800001,149.37,149.35,3.83426527]
[1642100111867,2.25000001,149.37,149.34,3.82987309]
[1642100112068,2.25000001,149.37,149.3,16.55487421]
[1642100112268,2.25000001,149.37,149.3,22.55487421]
[1642100112967,2.25000001,149.37,149.3,18.72500112]
[1642100113167,12.29460001,149.37,149.3,18.72500112]
[1642100113567,12.29460001,149.37,149.3,6.0]
[1642100113771,12.29460001,149.37,149.29,40.0741]
[1642100113967,12.29460001,149.37,149.29,40.3341]
[1642100114169,12.29460001,149.37,149.29,34.3341]
[1642100114368,12.29460001,149.37,149.28,3.82987309]
[1642100114569,10.0475,149.33,149.28,3.82987309]
[1642100114768,2.678,149.32,149.3,3.83563405]
[1642100114967,2.00000001,149.31,149.3,3.83563405]
[1642100115369,2.25000001,149.31,149.3,3.83563405]
[1642100115567,4.92800001,149.31,149.28,3.82987309]
[1642100115770,10.0506,149.29,149.27,2.678]
[1642100115968,18.5076,149.29,149.27,2.678]
[1642100116472,2.00000001,149.28,149.27,2.678]
[1642100116675,2.00000001,149.28,149.27,2.178]
[1642100116871,14.97950001,149.28,149.25,3.82987309]
[1642100117071,2.678,149.27,149.25,3.82987309]
[1642100117469,2.678,149.27,149.21,0.66801529]
[1642100117470,2.00000001,149.26,149.21,0.66801529]
[1642100117670,2.68,149.25,149.21,0.66801529]
[1642100118071,8.93,149.25,149.21,0.66801529]
[1642100118471,10.057,149.23,149.21,0.66801529]
[1642100118670,4.68000001,149.22,149.21,0.66801529]
[1642100118872,4.68000001,149.22,149.21,0.16801529]
[1642100119074,4.93000001,149.22,149.21,0.16801529]
[1642100119272,2.25000001,149.22,149.21,0.16801529]
[1642100119874,2.51000001,149.22,149.21,0.16801529]
[1642100120174,12.56630001,149.22,149.21,0.16801529]
[1642100120778,12.30630001,149.22,149.21,0.16801529]
[1642100121676,20.98630001,149.22,149.21,0.16801529]
[1642100122875,14.98630001,149.22,149.21,0.16801529]
[1642100123877,14.73630001,149.22,149.21,0.16801529]
[1642100124080,2.00000001,149.22,149.21,0.16801529]
[1642100124280,12.31,149.3,149.21,18.70734892]
[1642100124879,12.308,149.33,149.21,19.21734892]
[1642100125279,12.308,149.33,149.21,18.96734892]
[1642100125482,10.0514,149.29,149.21,18.70734892]
[1642100125681,2.68,149.28,149.21,4.23241522]
[1642100126082,0.25,149.28,149.21,4.23241522]
[1642100126288,2.68,149.32,149.21,4.23241522]
[1642100127082,33.5095,149.31,149.21,4.23241522]
[1642100127282,2.678,149.3,149.21,4.23241522]
[1642100127485,2.678,149.32,149.21,4.23241522]
[1642100127882,2.928,149.32,149.21,4.23241522]
[1642100128281,10.0517,149.29,149.21,4.23241522]
[1642100128482,2.68,149.28,149.21,4.23241522]
[1642100128883,2.93,149.28,149.21,4.23241522]
[1642100129286,12.9819,149.28,149.21,4.23241522]
[1642100131087,12.9819,149.28,149.21,0.16801529]
[1642100131485,79.3719,149.28,149.21,0.16801529]
[1642100132587,85.3719,149.28,149.21,0.16801529]
[1642100133487,12.9819,149.28,149.21,0.16801529]
[1642100134289,18.9819,149.28,149.21,0.16801529]
[1642100134494,10.0577,149.24,149.21,0.16801529]
[1642100134790,4.68000001,149.23,149.21,0.16801529]
[1642100134991,4.93000001,149.23,149.21,0.16801529]
[1642100135592,10.69900001,149.23,149.21,0.16801529]
[1642100135790,10.95900001,149.23,149.21,0.16801529]
[1642100135990,10.0584,149.22,149.21,0.16801529]
[1642100136392,16.3084,149.22,149.21,0.16801529]